[Event "*** MasterClass Titled Tuesday Blitz"]
[Site "Chess.com"]
[Date "2017.09.05"]
[Round "8"]
[White "GrigorGrigorov"]
[Black "TrickyTrapChess"]
[Result "1-0"]
[WhiteElo "2614"]
[BlackElo "2314"]
[TimeControl "180+2"]
[EndTime "15:00:17 PDT"]
[Termination "GrigorGrigorov won by resignation"]

1. d4 {[%clk 0:03:01.9]} 1... Nf6 {[%clk 0:03:00.4]} 2. c4 {[%clk 0:03:02.8]}
2... e6 {[%clk 0:02:54.2]} 3. Nc3 {[%clk 0:03:02.9]} 3... Bb4 {[%clk 0:02:52]}
4. e3 {[%clk 0:03:04.1]} 4... b6 {[%clk 0:02:51.3]} 5. Ne2 {[%clk 0:03:04.2]}
5... Ba6 {[%clk 0:02:49.6]} 6. a3 {[%clk 0:03:02.1]} 6... Be7 {[%clk 0:02:48.7]}
7. Nf4 {[%clk 0:02:57.7]} 7... d5 {[%clk 0:02:47.4]} 8. cxd5 {[%clk 0:02:58.3]}
8... Bxf1 {[%clk 0:02:46]} 9. Kxf1 {[%clk 0:02:59.8]} 9... Nxd5 {[%clk
0:02:45.1]} 10. Ncxd5 {[%clk 0:02:47.8]} 10... exd5 {[%clk 0:02:47.1]} 11. Qf3
{[%clk 0:02:44.7]} 11... c6 {[%clk 0:02:45.1]} 12. g4 {[%clk 0:02:45.8]} 12...
Nd7 {[%clk 0:02:43.4]} 13. Kg2 {[%clk 0:02:44.5]} 13... Nf6 {[%clk 0:02:38.4]}
14. Bd2 {[%clk 0:02:37]} 14... Ne4 {[%clk 0:02:35.8]} 15. Be1 {[%clk 0:02:29.3]}
15... O-O {[%clk 0:02:33.5]} 16. Rc1 {[%clk 0:02:25.1]} 16... Rc8 {[%clk
0:02:30.7]} 17. Qe2 {[%clk 0:02:22.4]} 17... Bd6 {[%clk 0:02:20.1]} 18. f3
{[%clk 0:02:17.7]} 18... Bxf4 {[%clk 0:02:20.8]} 19. exf4 {[%clk 0:02:14.9]}
19... Nd6 {[%clk 0:02:19.5]} 20. f5 {[%clk 0:02:13.2]} 20... Re8 {[%clk
0:02:17.7]} 21. Qd3 {[%clk 0:02:11.6]} 21... Nc4 {[%clk 0:02:16.9]} 22. b3
{[%clk 0:01:39.9]} 22... Re3 {[%clk 0:02:07.8]} 23. Qd1 {[%clk 0:01:38.8]} 23...
Nxa3 {[%clk 0:02:06.5]} 24. Bf2 {[%clk 0:01:39.7]} 24... Re7 {[%clk 0:02:03.6]}
25. Qd2 {[%clk 0:01:32.8]} 25... Nb5 {[%clk 0:02:00.5]} 26. Rhe1 {[%clk
0:01:18.2]} 26... Rxe1 {[%clk 0:01:59.1]} 27. Rxe1 {[%clk 0:01:17.6]} 27... Qd7
{[%clk 0:01:58.4]} 28. f6 {[%clk 0:01:12]} 28... gxf6 {[%clk 0:01:44.4]} 29. Bh4
{[%clk 0:01:07.1]} 29... Qd6 {[%clk 0:01:43.3]} 30. Qh6 {[%clk 0:01:01.6]} 30...
Qf8 {[%clk 0:01:44.3]} 31. Qxf6 {[%clk 0:01:01.2]} 31... Qg7 {[%clk 0:01:41]}
32. Qf5 {[%clk 0:01:00.2]} 32... Rf8 {[%clk 0:01:31.4]} 33. Bf6 {[%clk
0:00:59.2]} 33... Qg6 {[%clk 0:01:30.2]} 34. Qf4 {[%clk 0:00:58.5]} 34... Nc7
{[%clk 0:01:24.2]} 35. h4 {[%clk 0:00:32.1]} 35... Ne6 {[%clk 0:01:22]} 36. Qe5
{[%clk 0:00:33.9]} 36... h6 {[%clk 0:01:13.8]} 37. Kg3 {[%clk 0:00:34.1]} 37...
Kh7 {[%clk 0:01:02.8]} 38. h5 {[%clk 0:00:28.5]} 38... Qd3 {[%clk 0:00:59.9]}
39. Re3 {[%clk 0:00:28.3]} 39... Qb1 {[%clk 0:00:54.9]} 40. Qf5+ {[%clk
0:00:23.4]} 40... Qxf5 {[%clk 0:00:54]} 41. gxf5 {[%clk 0:00:24.7]} 41... Ng7
{[%clk 0:00:51.9]} 42. Kg4 {[%clk 0:00:21.3]} 42... Ne8 {[%clk 0:00:52.6]} 43.
Bh4 {[%clk 0:00:20.2]} 43... Rg8+ {[%clk 0:00:46.2]} 44. Kf4 {[%clk 0:00:21.2]}
44... Ng7 {[%clk 0:00:46.7]} 45. Re7 {[%clk 0:00:18.3]} 45... Nxh5+ {[%clk
0:00:47.5]} 46. Ke5 {[%clk 0:00:19.8]} 46... Rf8 {[%clk 0:00:43.5]} 47. f6
{[%clk 0:00:15.6]} 47... a6 {[%clk 0:00:41.9]} 48. f4 {[%clk 0:00:13.2]} 48...
Kg6 {[%clk 0:00:41.1]} 49. f5+ {[%clk 0:00:14.2]} 49... Kh7 {[%clk 0:00:41.9]}
50. Rc7 {[%clk 0:00:13.6]} 50... Re8+ {[%clk 0:00:40.9]} 51. Kd6 {[%clk
0:00:14.2]} 51... Re4 {[%clk 0:00:28.8]} 52. Bf2 {[%clk 0:00:09.6]} 52... Kg8
{[%clk 0:00:19.9]} 53. Rc8+ {[%clk 0:00:09.7]} 53... Kh7 {[%clk 0:00:20.6]} 54.
Rf8 {[%clk 0:00:10.5]} 54... Rf4 {[%clk 0:00:17.1]} 55. Be3 {[%clk 0:00:11.7]}
55... Rxf5 {[%clk 0:00:17.3]} 56. Rxf7+ {[%clk 0:00:12.2]} 56... Kg8 {[%clk
0:00:18.9]} 57. Ke7 {[%clk 0:00:13]} 57... Rf3 {[%clk 0:00:17.9]} 58. Bxh6
{[%clk 0:00:13.1]} 58... c5 {[%clk 0:00:14.2]} 59. Rf8+ {[%clk 0:00:11.3]} 59...
Kh7 {[%clk 0:00:14.9]} 60. Bd2 {[%clk 0:00:12]} 60... cxd4 {[%clk 0:00:09.3]}
61. f7 {[%clk 0:00:12.9]} 61... Ng7 {[%clk 0:00:09.9]} 62. Rg8 {[%clk
0:00:12.2]} 62... Nf5+ {[%clk 0:00:10.8]} 63. Ke6 {[%clk 0:00:10.6]} 63... Ng7+
{[%clk 0:00:11.4]} 64. Ke7 {[%clk 0:00:10.2]} 64... Nf5+ {[%clk 0:00:12.7]} 65.
Kd7 {[%clk 0:00:10.9]} 65... Nh6 {[%clk 0:00:07.4]} 66. f8=Q {[%clk 0:00:12]}
66... Rxf8 {[%clk 0:00:07.1]} 67. Rxf8 {[%clk 0:00:13.3]} 67... b5 {[%clk
0:00:08.7]} 68. Bxh6 {[%clk 0:00:13.2]} 68... Kxh6 {[%clk 0:00:09.5]} 69. Rf4
{[%clk 0:00:13.1]} 1-0

[Event "*** MasterClass Titled Tuesday Blitz"]
[Site "Chess.com"]
[Date "2017.09.05"]
[Round "8"]
[White "Keaton87"]
[Black "GM_dmitrij"]
[Result "1/2-1/2"]
[WhiteElo "2494"]
[BlackElo "2634"]
[TimeControl "180+2"]
[EndTime "15:01:00 PDT"]
[Termination "Game drawn - insufficient material"]

1. e4 {[%clk 0:03:02]} 1... e5 {[%clk 0:02:48.1]} 2. Nf3 {[%clk 0:03:02.6]} 2...
Nc6 {[%clk 0:02:47.8]} 3. Nc3 {[%clk 0:03:02.9]} 3... Nf6 {[%clk 0:02:49.4]} 4.
Bb5 {[%clk 0:03:03.3]} 4... Bb4 {[%clk 0:02:51.2]} 5. d3 {[%clk 0:03:01.6]} 5...
O-O {[%clk 0:02:52.2]} 6. O-O {[%clk 0:03:02.4]} 6... Bxc3 {[%clk 0:02:52.9]} 7.
bxc3 {[%clk 0:03:03.2]} 7... d6 {[%clk 0:02:54.8]} 8. Bg5 {[%clk 0:03:00.5]}
8... Qe7 {[%clk 0:02:49.6]} 9. h3 {[%clk 0:03:00.1]} 9... Nd8 {[%clk 0:02:42.2]}
10. Bc4 {[%clk 0:02:53.2]} 10... Be6 {[%clk 0:02:41]} 11. Bb3 {[%clk 0:02:54.4]}
11... Bxb3 {[%clk 0:02:38.7]} 12. cxb3 {[%clk 0:02:52]} 12... Ne6 {[%clk
0:02:40.3]} 13. Be3 {[%clk 0:02:42.4]} 13... Rad8 {[%clk 0:02:26.7]} 14. Qc2
{[%clk 0:02:36.8]} 14... Rfe8 {[%clk 0:02:16.9]} 15. a4 {[%clk 0:02:34.3]} 15...
a6 {[%clk 0:02:15.6]} 16. a5 {[%clk 0:02:34.9]} 16... d5 {[%clk 0:01:59.2]} 17.
Nxe5 {[%clk 0:02:25.9]} 17... dxe4 {[%clk 0:02:00.5]} 18. dxe4 {[%clk
0:02:25.2]} 18... Nc5 {[%clk 0:02:01.6]} 19. Nf3 {[%clk 0:01:57.9]} 19... Ncxe4
{[%clk 0:02:00.5]} 20. Rfe1 {[%clk 0:01:57.7]} 20... Nd5 {[%clk 0:01:52]} 21.
Bd4 {[%clk 0:01:50.3]} 21... c5 {[%clk 0:01:49.9]} 22. Bxc5 {[%clk 0:01:39.9]}
22... Qxc5 {[%clk 0:01:50.2]} 23. Rxe4 {[%clk 0:01:40.9]} 23... Qxc3 {[%clk
0:01:42.5]} 24. Rxe8+ {[%clk 0:01:19]} 24... Rxe8 {[%clk 0:01:43.6]} 25. Qxc3
{[%clk 0:01:19.8]} 25... Nxc3 {[%clk 0:01:45.5]} 26. Kf1 {[%clk 0:01:20.3]}
26... g6 {[%clk 0:01:38.5]} 27. Rc1 {[%clk 0:01:19.5]} 27... Nb5 {[%clk
0:01:40]} 28. Rc5 {[%clk 0:01:08.9]} 28... Kf8 {[%clk 0:01:39.2]} 29. Rd5 {[%clk
0:01:08.6]} 29... Ke7 {[%clk 0:01:30.6]} 30. Re5+ {[%clk 0:01:09.4]} 30... Kd7
{[%clk 0:01:31.7]} 31. Rxe8 {[%clk 0:01:11.4]} 31... Kxe8 {[%clk 0:01:33.6]} 32.
Ke2 {[%clk 0:01:10.5]} 32... Kd7 {[%clk 0:01:25.8]} 33. Kd3 {[%clk 0:00:56.8]}
33... f6 {[%clk 0:01:26.6]} 34. Kc4 {[%clk 0:00:46.4]} 34... Kc6 {[%clk
0:01:26.9]} 35. b4 {[%clk 0:00:41.6]} 35... Nd6+ {[%clk 0:01:28.7]} 36. Kd4
{[%clk 0:00:16.8]} 36... Kb5 {[%clk 0:01:30.7]} 37. Kd5 {[%clk 0:00:18.1]} 37...
Nc4 {[%clk 0:01:29.6]} 38. Ke6 {[%clk 0:00:13.4]} 38... Kxb4 {[%clk 0:01:31.2]}
39. Kxf6 {[%clk 0:00:14.5]} 39... b6 {[%clk 0:01:22.4]} 40. axb6 {[%clk
0:00:13.6]} 40... Nxb6 {[%clk 0:01:25.2]} 41. Kg7 {[%clk 0:00:13.9]} 41... a5
{[%clk 0:01:27.3]} 42. Kxh7 {[%clk 0:00:15]} 42... a4 {[%clk 0:01:29.3]} 43. Nd4
{[%clk 0:00:06.9]} 43... Kc4 {[%clk 0:01:29.6]} 44. Nc2 {[%clk 0:00:07.8]} 44...
Kc3 {[%clk 0:01:31.3]} 45. Na3 {[%clk 0:00:08.3]} 45... Nc4 {[%clk 0:01:31.3]}
46. Nb5+ {[%clk 0:00:06.9]} 46... Kb4 {[%clk 0:01:29.7]} 47. Nd4 {[%clk
0:00:08.1]} 47... Kc3 {[%clk 0:01:16.4]} 48. Nb5+ {[%clk 0:00:09]} 48... Kb3
{[%clk 0:01:03.5]} 49. Kxg6 {[%clk 0:00:09.2]} 49... Nd6 {[%clk 0:01:04.7]} 50.
Nxd6 {[%clk 0:00:06.4]} 50... a3 {[%clk 0:01:06.2]} 51. h4 {[%clk 0:00:07.6]}
51... a2 {[%clk 0:01:07.7]} 52. h5 {[%clk 0:00:08]} 52... a1=Q {[%clk
0:01:09.6]} 53. Nf7 {[%clk 0:00:07.8]} 53... Qb1+ {[%clk 0:01:09.9]} 54. Kg7
{[%clk 0:00:08.5]} 54... Qb2+ {[%clk 0:01:10.5]} 55. Kg6 {[%clk 0:00:08.8]}
55... Qxf2 {[%clk 0:01:11.6]} 56. h6 {[%clk 0:00:09.2]} 56... Qxg2+ {[%clk
0:01:12.8]} 57. Kf6 {[%clk 0:00:10.2]} 57... Qf3+ {[%clk 0:01:13.4]} 58. Kg7
{[%clk 0:00:11.2]} 58... Qg4+ {[%clk 0:01:14.1]} 59. Kf6 {[%clk 0:00:10.6]}
59... Qh5 {[%clk 0:01:14.9]} 60. Kg7 {[%clk 0:00:11.8]} 60... Qg4+ {[%clk
0:01:16]} 61. Kf6 {[%clk 0:00:12.8]} 61... Qg8 {[%clk 0:01:14.6]} 62. Ng5 {[%clk
0:00:10.2]} 62... Kc4 {[%clk 0:01:10.5]} 63. h7 {[%clk 0:00:10.5]} 63... Qf8+
{[%clk 0:01:06.3]} 64. Kg6 {[%clk 0:00:11.8]} 64... Qd6+ {[%clk 0:01:02.9]} 65.
Kg7 {[%clk 0:00:12.1]} 65... Qe5+ {[%clk 0:01:04.1]} 66. Kg6 {[%clk 0:00:11.5]}
66... Kd5 {[%clk 0:00:56.4]} 67. Nf7 {[%clk 0:00:12.5]} 67... Qg3+ {[%clk
0:00:56.8]} 68. Kf6 {[%clk 0:00:13]} 68... Qf4+ {[%clk 0:00:56.2]} 69. Kg7
{[%clk 0:00:14.1]} 69... Qg4+ {[%clk 0:00:48]} 70. Kf6 {[%clk 0:00:13.4]} 70...
Qd4+ {[%clk 0:00:48.4]} 71. Kg6 {[%clk 0:00:14.2]} 71... Qg4+ {[%clk 0:00:39.3]}
72. Kf6 {[%clk 0:00:14.8]} 72... Qh4+ {[%clk 0:00:40.3]} 73. Kg7 {[%clk
0:00:15.1]} 73... Ke6 {[%clk 0:00:37.7]} 74. h8=Q {[%clk 0:00:12.9]} 74... Qf6+
{[%clk 0:00:33.8]} 75. Kh7 {[%clk 0:00:14]} 75... Qf5+ {[%clk 0:00:30.6]} 76.
Kh6 {[%clk 0:00:09.2]} 76... Qh3+ {[%clk 0:00:29.7]} 77. Kg6 {[%clk 0:00:05.9]}
77... Qf5+ {[%clk 0:00:28.3]} 78. Kh6 {[%clk 0:00:07.2]} 78... Qxf7 {[%clk
0:00:24.1]} 79. Qg7 {[%clk 0:00:07.5]} 79... Qxg7+ {[%clk 0:00:24.6]} 80. Kxg7
{[%clk 0:00:08.5]} 1/2-1/2

[Event "*** MasterClass Titled Tuesday Blitz"]
[Site "Chess.com"]
[Date "2017.09.05"]
[Round "8"]
[White "BilodeauA"]
[Black "XDPS"]
[Result "0-1"]
[WhiteElo "2642"]
[BlackElo "2591"]
[TimeControl "180+2"]
[EndTime "15:01:12 PDT"]
[Termination "XDPS won by resignation"]

1. e4 {[%clk 0:03:01.9]} 1... c5 {[%clk 0:03:00.5]} 2. Nf3 {[%clk 0:03:02.2]}
2... d6 {[%clk 0:02:59.3]} 3. d4 {[%clk 0:03:00.4]} 3... cxd4 {[%clk 0:02:59]}
4. Nxd4 {[%clk 0:03:02.3]} 4... Nf6 {[%clk 0:02:58.2]} 5. Nc3 {[%clk 0:03:03]}
5... a6 {[%clk 0:02:54.6]} 6. Be2 {[%clk 0:02:59.9]} 6... e5 {[%clk 0:02:46.2]}
7. Nb3 {[%clk 0:03:00.5]} 7... Be7 {[%clk 0:02:46.6]} 8. O-O {[%clk 0:03:00.8]}
8... O-O {[%clk 0:02:45.3]} 9. Kh1 {[%clk 0:03:02]} 9... b6 {[%clk 0:02:41.8]}
10. f3 {[%clk 0:03:01.8]} 10... Bb7 {[%clk 0:02:42.3]} 11. Bg5 {[%clk
0:03:02.7]} 11... Nbd7 {[%clk 0:02:43.7]} 12. a4 {[%clk 0:03:02.4]} 12... Rc8
{[%clk 0:02:44.9]} 13. Be3 {[%clk 0:03:02.3]} 13... Rc7 {[%clk 0:02:45.8]} 14.
Rf2 {[%clk 0:03:03.4]} 14... Qa8 {[%clk 0:02:45.8]} 15. Bf1 {[%clk 0:03:01.5]}
15... Rfc8 {[%clk 0:02:46.7]} 16. Rd2 {[%clk 0:03:00.4]} 16... h6 {[%clk
0:02:46.1]} 17. Be2 {[%clk 0:02:58.7]} 17... Rxc3 {[%clk 0:02:45.6]} 18. bxc3
{[%clk 0:02:59.4]} 18... Rxc3 {[%clk 0:02:47.2]} 19. Qg1 {[%clk 0:02:58.4]}
19... Qc8 {[%clk 0:02:43.1]} 20. Bxb6 {[%clk 0:02:27.3]} 20... Rxc2 {[%clk
0:02:41.7]} 21. Ba5 {[%clk 0:02:17]} 21... d5 {[%clk 0:02:33]} 22. Rxc2 {[%clk
0:02:09.4]} 22... Qxc2 {[%clk 0:02:33.3]} 23. Qd1 {[%clk 0:02:10]} 23... Qxd1+
{[%clk 0:02:24.6]} 24. Rxd1 {[%clk 0:02:10.8]} 24... dxe4 {[%clk 0:02:16.5]} 25.
fxe4 {[%clk 0:02:11.8]} 25... Bc6 {[%clk 0:02:13.1]} 26. Bxa6 {[%clk 0:02:10.2]}
26... Bxa4 {[%clk 0:02:13.6]} 27. Bc4 {[%clk 0:01:43.7]} 27... Nxe4 {[%clk
0:02:13]} 28. Re1 {[%clk 0:01:42]} 28... Ndf6 {[%clk 0:02:09.3]} 29. Bb6 {[%clk
0:01:34.6]} 29... Bb4 {[%clk 0:02:06.8]} 30. Ra1 {[%clk 0:01:33.3]} 30... Bc6
{[%clk 0:02:02.5]} 31. Ra7 {[%clk 0:01:17.4]} 31... Nd6 {[%clk 0:01:57.2]} 32.
Be2 {[%clk 0:01:17.3]} 32... Nd5 {[%clk 0:01:56]} 33. Bc5 {[%clk 0:01:15.3]}
33... Bxc5 {[%clk 0:01:53.5]} 34. Nxc5 {[%clk 0:01:17.2]} 34... Nf4 {[%clk
0:01:55.1]} 35. Bf3 {[%clk 0:01:17.5]} 35... e4 {[%clk 0:01:55.7]} 36. Bd1
{[%clk 0:00:41.1]} 36... e3 {[%clk 0:01:56.1]} 37. Bf3 {[%clk 0:00:42.4]} 37...
Bxf3 {[%clk 0:01:33.9]} 38. gxf3 {[%clk 0:00:42.7]} 38... Nf5 {[%clk 0:01:34.8]}
39. Ra8+ {[%clk 0:00:29.2]} 39... Kh7 {[%clk 0:01:34.3]} 40. Re8 {[%clk
0:00:30.5]} 40... e2 {[%clk 0:01:27.5]} 41. Kg1 {[%clk 0:00:29.2]} 41... Ne6
{[%clk 0:01:28.6]} 42. Kf2 {[%clk 0:00:28.9]} 42... Nxc5 {[%clk 0:01:29.7]} 43.
Kxe2 {[%clk 0:00:26.9]} 43... Ne6 {[%clk 0:01:22]} 44. Ra8 {[%clk 0:00:27.7]}
44... g5 {[%clk 0:01:21.6]} 45. Kf2 {[%clk 0:00:29.3]} 45... Kg6 {[%clk
0:01:22.6]} 46. Ra6 {[%clk 0:00:30.9]} 46... h5 {[%clk 0:01:23.2]} 47. Ra7
{[%clk 0:00:32.2]} 47... h4 {[%clk 0:01:24.3]} 48. Ra6 {[%clk 0:00:33.3]} 48...
Ne7 {[%clk 0:01:23.1]} 49. Ra7 {[%clk 0:00:34.5]} 49... Nd5 {[%clk 0:01:24.2]}
50. Ra6 {[%clk 0:00:35.9]} 50... Nf4 {[%clk 0:01:25.2]} 51. Ra5 {[%clk 0:00:37]}
51... f6 {[%clk 0:01:26.4]} 52. Ra8 {[%clk 0:00:37.4]} 52... Nd4 {[%clk
0:01:27.3]} 53. Rg8+ {[%clk 0:00:35.7]} 53... Kf5 {[%clk 0:01:28.5]} 54. Ra8
{[%clk 0:00:37.6]} 54... Nc6 {[%clk 0:01:29.5]} 55. Ra6 {[%clk 0:00:38.2]} 55...
Ne5 {[%clk 0:01:31]} 56. Ra5 {[%clk 0:00:39.8]} 56... Ne6 {[%clk 0:01:29.4]} 57.
Ra6 {[%clk 0:00:40.7]} 57... Nd4 {[%clk 0:01:30.4]} 58. f4 {[%clk 0:00:35.1]}
58... gxf4 {[%clk 0:01:29.7]} 59. h3 {[%clk 0:00:36.1]} 59... Ne6 {[%clk
0:01:28.2]} 60. Ra8 {[%clk 0:00:31.5]} 60... Ng5 {[%clk 0:01:29.7]} 61. Kg2
{[%clk 0:00:29.5]} 61... f3+ {[%clk 0:01:29.9]} 62. Kh2 {[%clk 0:00:30.4]} 62...
f2 {[%clk 0:01:18.6]} 63. Kg2 {[%clk 0:00:30.9]} 63... Nxh3 {[%clk 0:01:19.6]}
64. Ra1 {[%clk 0:00:29.3]} 64... Kg4 {[%clk 0:01:19.8]} 65. Ra4+ {[%clk
0:00:28.7]} 65... Kg5 {[%clk 0:01:20.7]} 66. Ra1 {[%clk 0:00:26.5]} 66... Kg4
{[%clk 0:01:17.8]} 67. Ra4+ {[%clk 0:00:27]} 67... Nf4+ {[%clk 0:01:19.7]} 68.
Kxf2 {[%clk 0:00:28.5]} 68... h3 {[%clk 0:01:21.3]} 69. Kg1 {[%clk 0:00:29.7]}
69... Kg3 {[%clk 0:01:21]} 70. Ra3+ {[%clk 0:00:28.9]} 70... Nf3+ {[%clk
0:01:21.7]} 71. Kh1 {[%clk 0:00:30.5]} 71... Ng2 {[%clk 0:01:10.2]} 72. Ra4
{[%clk 0:00:28.7]} 72... Ne5 {[%clk 0:00:41.1]} 73. Ra3+ {[%clk 0:00:29.5]}
73... Kg4 {[%clk 0:00:42.2]} 74. Ra4+ {[%clk 0:00:30.8]} 74... Nf4 {[%clk
0:00:42.9]} 75. Kh2 {[%clk 0:00:31.1]} 75... f5 {[%clk 0:00:44.3]} 76. Rb4
{[%clk 0:00:31.8]} 76... Nf3+ {[%clk 0:00:45.3]} 77. Kh1 {[%clk 0:00:32.9]}
77... Ng5 {[%clk 0:00:46.9]} 78. Kh2 {[%clk 0:00:33.6]} 78... Ne4 {[%clk
0:00:48.1]} 79. Rb3 {[%clk 0:00:33.6]} 79... Ng5 {[%clk 0:00:41.2]} 80. Rg3+
{[%clk 0:00:33.3]} 80... Kh4 {[%clk 0:00:42.4]} 81. Ra3 {[%clk 0:00:34.1]} 81...
Ne2 {[%clk 0:00:42.4]} 82. Re3 {[%clk 0:00:29.4]} 82... Nd4 {[%clk 0:00:37.9]}
83. Rd3 {[%clk 0:00:30.7]} 83... f4 {[%clk 0:00:37.3]} 84. Kh1 {[%clk
0:00:30.1]} 84... Ne2 {[%clk 0:00:35.6]} 85. Ra3 {[%clk 0:00:17.1]} 85... Kg4
{[%clk 0:00:35.6]} 86. Kh2 {[%clk 0:00:17.2]} 86... Nf3+ {[%clk 0:00:35.6]} 0-1

[Event "*** MasterClass Titled Tuesday Blitz"]
[Site "Chess.com"]
[Date "2017.09.05"]
[Round "9"]
[White "WeiYi1999"]
[Black "jcibarra"]
[Result "0-1"]
[WhiteElo "2179"]
[BlackElo "2700"]
[TimeControl "180+2"]
[EndTime "15:06:07 PDT"]
[Termination "jcibarra won by resignation"]

1. e4 {[%clk 0:03:01.9]} 1... c5 {[%clk 0:03:00.5]} 2. c3 {[%clk 0:03:02.6]}
2... Nf6 {[%clk 0:02:59.4]} 3. e5 {[%clk 0:03:03.4]} 3... Nd5 {[%clk 0:03:00.6]}
4. d4 {[%clk 0:03:04.4]} 4... cxd4 {[%clk 0:03:02.5]} 5. Nf3 {[%clk 0:03:05.2]}
5... e6 {[%clk 0:03:03.4]} 6. cxd4 {[%clk 0:03:05.3]} 6... d6 {[%clk 0:03:04.7]}
7. Bc4 {[%clk 0:03:06]} 7... Nc6 {[%clk 0:03:05]} 8. O-O {[%clk 0:03:06.9]} 8...
Be7 {[%clk 0:03:06]} 9. a3 {[%clk 0:03:05.8]} 9... O-O {[%clk 0:02:56.4]} 10.
Bd3 {[%clk 0:03:07]} 10... Bd7 {[%clk 0:02:22.1]} 11. Qc2 {[%clk 0:03:06.7]}
11... g6 {[%clk 0:02:03.8]} 12. Bh6 {[%clk 0:03:06.6]} 12... Re8 {[%clk
0:02:05.3]} 13. Nbd2 {[%clk 0:03:07.1]} 13... Rc8 {[%clk 0:02:03.9]} 14. Qd1
{[%clk 0:02:51.2]} 14... Qb6 {[%clk 0:02:02.2]} 15. Nc4 {[%clk 0:02:49.9]} 15...
Qc7 {[%clk 0:02:03.4]} 16. Re1 {[%clk 0:02:41.6]} 16... dxe5 {[%clk 0:01:58]}
17. dxe5 {[%clk 0:02:40.7]} 17... b5 {[%clk 0:01:58]} 0-1

[Event "*** MasterClass Titled Tuesday Blitz"]
[Site "Chess.com"]
[Date "2017.09.05"]
[Round "9"]
[White "Rokis13"]
[Black "MatthewG-p4p"]
[Result "0-1"]
[WhiteElo "2357"]
[BlackElo "2575"]
[TimeControl "180+2"]
[EndTime "15:07:18 PDT"]
[Termination "MatthewG-p4p won by resignation"]

1. e4 {[%clk 0:03:01.9]} 1... c5 {[%clk 0:02:56.8]} 2. Nc3 {[%clk 0:03:00.5]}
2... e6 {[%clk 0:02:57.9]} 3. g3 {[%clk 0:03:01.4]} 3... Nc6 {[%clk 0:02:53.3]}
4. Bg2 {[%clk 0:03:01.8]} 4... Nf6 {[%clk 0:02:54.6]} 5. f4 {[%clk 0:03:01.9]}
5... d5 {[%clk 0:02:55.7]} 6. d3 {[%clk 0:03:03.1]} 6... g6 {[%clk 0:02:56.7]}
7. Nf3 {[%clk 0:03:03.3]} 7... Bg7 {[%clk 0:02:58.1]} 8. O-O {[%clk 0:03:04.2]}
8... O-O {[%clk 0:02:59.6]} 9. Qe1 {[%clk 0:03:04.2]} 9... Rb8 {[%clk
0:02:56.9]} 10. h3 {[%clk 0:03:02.7]} 10... b5 {[%clk 0:02:57.8]} 11. g4 {[%clk
0:02:57.4]} 11... b4 {[%clk 0:02:59]} 12. Nd1 {[%clk 0:02:56.2]} 12... dxe4
{[%clk 0:02:54.5]} 13. dxe4 {[%clk 0:02:56.9]} 13... Ba6 {[%clk 0:02:56.1]} 14.
Rf2 {[%clk 0:02:58.2]} 14... c4 {[%clk 0:02:54]} 15. g5 {[%clk 0:02:46.6]} 15...
Nd7 {[%clk 0:02:54.3]} 16. Be3 {[%clk 0:02:47.7]} 16... Qc7 {[%clk 0:02:53]} 17.
f5 {[%clk 0:02:48.4]} 17... exf5 {[%clk 0:02:53.7]} 18. exf5 {[%clk 0:02:49.8]}
18... Rfe8 {[%clk 0:02:54.8]} 19. Qd2 {[%clk 0:02:41.6]} 19... c3 {[%clk
0:02:51.9]} 20. bxc3 {[%clk 0:02:39.2]} 20... bxc3 {[%clk 0:02:53.3]} 21. Qd5
{[%clk 0:02:34.4]} 21... Rb5 {[%clk 0:02:51]} 22. Qd3 {[%clk 0:02:16.4]} 22...
Rb1 {[%clk 0:02:47.1]} 23. Qxa6 {[%clk 0:02:17.5]} 23... Rxa1 {[%clk 0:02:48.3]}
24. Rf1 {[%clk 0:02:19.4]} 24... Nb4 {[%clk 0:02:42.8]} 25. Qb5 {[%clk
0:02:13.1]} 25... Rb8 {[%clk 0:02:40.6]} 26. Qe2 {[%clk 0:02:07.5]} 26... Rxa2
{[%clk 0:02:34.2]} 27. fxg6 {[%clk 0:02:07.9]} 27... hxg6 {[%clk 0:02:35.4]} 28.
Ne1 {[%clk 0:02:05.7]} 28... Re8 {[%clk 0:02:31.3]} 29. Qf2 {[%clk 0:02:05.2]}
29... Ne5 {[%clk 0:02:32.6]} 30. Bxa7 {[%clk 0:02:04.7]} 30... Qxa7 {[%clk
0:02:32.9]} 0-1

[Event "*** MasterClass Titled Tuesday Blitz"]
[Site "Chess.com"]
[Date "2017.09.05"]
[Round "9"]
[White "Rodalquilar"]
[Black "chesstatour"]
[Result "1-0"]
[WhiteElo "2498"]
[BlackElo "2070"]
[TimeControl "180+2"]
[EndTime "15:07:26 PDT"]
[Termination "Rodalquilar won by resignation"]

1. e4 {[%clk 0:03:00.8]} 1... c6 {[%clk 0:02:59.6]} 2. d4 {[%clk 0:03:01.2]}
2... d5 {[%clk 0:03:01.1]} 3. Nc3 {[%clk 0:03:02.3]} 3... dxe4 {[%clk
0:03:01.4]} 4. Nxe4 {[%clk 0:03:04.2]} 4... Nf6 {[%clk 0:03:02.9]} 5. Nxf6+
{[%clk 0:03:05.1]} 5... gxf6 {[%clk 0:03:04.8]} 6. Nf3 {[%clk 0:03:01.8]} 6...
Bg4 {[%clk 0:03:05.6]} 7. c3 {[%clk 0:03:00.3]} 7... e6 {[%clk 0:03:06.6]} 8. g3
{[%clk 0:03:01.3]} 8... h5 {[%clk 0:02:55.9]} 9. h3 {[%clk 0:02:57.1]} 9... Bxf3
{[%clk 0:02:56.2]} 10. Qxf3 {[%clk 0:02:57.7]} 10... h4 {[%clk 0:02:58.1]} 11.
g4 {[%clk 0:02:57.6]} 11... Bd6 {[%clk 0:02:51.6]} 12. Bg2 {[%clk 0:02:53.1]}
12... Nd7 {[%clk 0:02:52.3]} 13. O-O {[%clk 0:02:53]} 13... Qc7 {[%clk 0:02:36]}
14. Re1 {[%clk 0:02:53.9]} 14... O-O-O {[%clk 0:02:36.2]} 15. b4 {[%clk
0:02:52.9]} 15... Nb6 {[%clk 0:02:10]} 16. Rb1 {[%clk 0:02:46.8]} 16... Nd5
{[%clk 0:01:09.5]} 17. c4 {[%clk 0:02:47.4]} 17... Bxb4 {[%clk 0:01:08.1]} 18.
Rf1 {[%clk 0:02:40.1]} 18... Qa5 {[%clk 0:00:57.2]} 19. cxd5 {[%clk 0:02:40.4]}
19... cxd5 {[%clk 0:00:53.4]} 20. Qb3 {[%clk 0:02:38.8]} 1-0